{"text_format":"3","workbook":"xlsx","n_sheets":2,"sheets":["Budget prévisionnel","Bilan financier"],"not_rendered":{"defined_names":2},"read":"whole","date_system":"1900"}

{"sheet":"Budget prévisionnel","index":0,"n_rows":94,"n_cols":9,"rows_kept":94,"merged":[[1,1,1,5],[2,1,2,5],[3,1,3,5],[4,1,4,5],[6,0,6,6],[7,0,7,6],[8,0,8,6],[10,0,10,6],[11,6,17,6],[18,0,18,6],[19,6,26,6],[27,0,27,6],[28,6,34,6],[35,0,35,6],[36,6,44,6],[49,0,49,6],[50,6,57,6],[58,0,58,6],[59,6,66,6],[67,0,67,6],[68,6,73,6],[74,0,74,6],[75,6,83,6],[86,2,86,3],[88,0,88,1],[89,0,89,1],[90,0,90,1],[91,0,91,1],[93,0,93,1]]}
[]
[null,"Budget prévisionnel"]
[null,"Programme événements 2025 - Animation urbaine du SLSVC"]
["Nom de l'organisme :"]
["Nom du projet :"]
[]
["* * IMPORTANT : LIRE LES INSTRUCTIONS AVANT DE REMPLIR LA GRILLE BUDGÉTAIRE * *"]
["INFORMATIONS"]
["\n- Le calcul du soutien est basé sur les dépenses admissibles suivantes : honoraires professionnels ou salaire d’un chargé de projet, dépenses liées à la programmation, à l’animation, à \n                                                                                                          la logistique, frais de promotion et de communication.\n\n- Les dépenses de fonctionnement de votre organisme ne sont pas admissibles (salaire d'employés réguliers, immobilisation, taxes, achat de matériel durable, etc.).\n- Le budget prévisionnel doit être équilibré en espèces et en services (revenus équivalents aux dépenses).\n- Le soutien financier n'est pas récurrent et correspond à un maximum de 50 % des dépenses.\n- Le soutien financier sera accordé sous réserve du budget disponible. Il est possible qu'un ratio soit appliqué en fonction du nombre de demandes reçues.\n\nINSTRUCTIONS\n1. Colonne A : Inscrire le poste budgétaire\n2. Colonne B : Inscrire toutes les précisions pertinentes au poste budgétaire listé\n3. Colonne C : Inscrire le montant prévu associé au poste budgétaire\n4. Colonne E : OBLIGATOIRE - Choisir si le poste est un soutien ou une dépense en Espèces ou en Service (Revenus et Dépenses doivent être identiques)\n5. Colonne F : OBLIGATOIRE - Indiquer si le soutien ou la dépense est confirmé ou non\n6. Colonne G : Inscrire tout commentaire pertinent aux postes budgétaires ou aux montants inscrits"]
["REVENUS","Description / détails","valeur en espèces ($)","%","Type de soutien\nOBLIGATOIRE","Confirmation\nOBLIGATOIRE","Commentaires - justifications"]
["Municipal"]
["Animation urbaine (événement)","Programme de soutien financier",0,{"$f":"IF(C12=0,\"\",C12/$C$47)","v":""},"Sélectionnez","Sélectionnez"]
["Autre unité administrative : préciser "," ",0,{"$f":"IF(C13=0,\"\",C13/$C$47)","v":""},"Sélectionnez","Sélectionnez"]
[null,null,0,"","Sélectionnez","Sélectionnez"]
[null,null,0,"","Sélectionnez","Sélectionnez"]
[null,null,0,"","Sélectionnez","Sélectionnez"]
[null," ",0,"","Sélectionnez","Sélectionnez"]
[null,"sous-total",{"$f":"SUM(C12:C17)","v":0},{"$f":"IF(C18=0,0,SUM(D12:D17))","v":{"v":0,"d":"0%"}}]
["Organismes publics ou parapublics (provincial / fédéral)"]
["Gouvernement provincial (programme ou élu)",null,0,{"$f":"IF(C20=0,\"\",C20/$C$47)","v":""},"Sélectionnez","Sélectionnez"]
["Gouvernement fédéral (programme ou élu)",null,0,"","Sélectionnez","Sélectionnez"]
["Autres : préciser",null,0,"","Sélectionnez","Sélectionnez"]
[null,null,0,"","Sélectionnez","Sélectionnez"]
[null,null,0,"","Sélectionnez","Sélectionnez"]
[null,null,0,"","Sélectionnez","Sélectionnez"]
[null,"sous-total",{"$f":"SUM(C20:C25)","v":0},{"$f":"IF(C26=0,0,SUM(D20:D25))","v":{"v":0,"d":"0%"}}]
[null,"sous-total du financement public",{"$f":"C18+C26","v":0},{"$f":"SUM(D18,D26)","v":{"v":0,"d":"0%"}}]
["Partenaires du projet et Commanditaires"]
["Organismes partenaires",null,0,{"$f":"IF(C29=0,\"\",C29/$C$47)","v":""},"Sélectionnez","Sélectionnez"]
["Commanditaires",null,0,"","Sélectionnez","Sélectionnez"]
["Dons : préciser",null,0,"","Sélectionnez","Sélectionnez"]
[null,null,0,"","Sélectionnez","Sélectionnez"]
[null,null,0,"","Sélectionnez","Sélectionnez"]
[null,null,0,"","Sélectionnez","Sélectionnez"]
[null,"sous-total",{"$f":"SUM(C29:C34)","v":0},{"$f":"IF(C35=0,0,SUM(D29:D34))","v":{"v":0,"d":"0%"}}]
["Revenus autonomes"]
["Participation financière de l'organisme",null,0,{"$f":"IF(C37=0,\"\",C37/$C$47)","v":""},"Sélectionnez","Sélectionnez"]
["Ventes : préciser",null,0,"","Sélectionnez","Sélectionnez"]
["Activités de financement : préciser",null,0,"","Sélectionnez","Sélectionnez"]
["Autres : préciser",null,0,"","Sélectionnez","Sélectionnez"]
[null,null,0,"","Sélectionnez","Sélectionnez"]
[null,null,0,"","Sélectionnez","Sélectionnez"]
[null,null,0,"","Sélectionnez","Sélectionnez"]
[null,null,0,"","Sélectionnez","Sélectionnez"]
[null,"sous-total des revenus autonomes",{"$f":"SUM(C37:C44)","v":0},{"$f":"IF(C45=0,0,SUM(D37:D44))","v":{"v":0,"d":"0%"}}]
[]
[null,"total des revenus",{"$f":"SUM(C45,C35,C27)","v":0},{"$f":"SUM(D27,D35,D45)","v":{"v":0,"d":"0%"}}]
[]
["DÉPENSES","Description / détails","valeur en espèces ($)","%","Type de dépense\nOBLIGATOIRE","Confirmation\nOBLIGATOIRE","Commentaires - justifications"]
["Ressources humaines (EXCLUANT le salaire des employés de votre organisme)"]
["Honoraires professionnels (ex. technicien de son)"," ",0,{"$f":"IF(C51=0,\"\",C51/$C$86)","v":""},"Sélectionnez","Sélectionnez"]
["Salaire chargé de projet"," ",0,{"$f":"IF(C52=0,\"\",C52/$C$86)","v":""},"Sélectionnez","Sélectionnez"]
["Autres : préciser"," ",0,"","Sélectionnez","Sélectionnez"]
[null," ",0,"","Sélectionnez","Sélectionnez"]
[null,null,0,"","Sélectionnez","Sélectionnez"]
[null,null,0,"","Sélectionnez","Sélectionnez"]
[null," ",0,"","Sélectionnez","Sélectionnez"]
[null,"sous-total",{"$f":"SUM(C51:C57)","v":0},{"$f":"SUM(D51:D57)","v":{"v":0,"d":"0%"}}]
["Logistique"]
["Matériel pour animation"," ",0,{"$f":"IF(C60=0,\"\",C60/$C$86)","v":""},"Sélectionnez","Sélectionnez"]
["Animation"," ",0,"","Sélectionnez","Sélectionnez"]
["Sonorisation"," ",0,"","Sélectionnez","Sélectionnez"]
["Éclairage"," ",0,"","Sélectionnez","Sélectionnez"]
["Location"," ",0,"","Sélectionnez","Sélectionnez"]
["Autres : préciser"," ",0,"","Sélectionnez","Sélectionnez"]
[null," ",0,"","Sélectionnez","Sélectionnez"]
[null,"sous-total",{"$f":"SUM(C60:C66)","v":0},{"$f":"SUM(D60:D66)","v":{"v":0,"d":"0%"}},{"$nulls":4},{"$f":"SUM(I60:I66)","v":0}]
["Promotion du projet"]
["Graphisme"," ",0,{"$f":"IF(C69=0,\"\",C69/$C$86)","v":""},"Sélectionnez","Sélectionnez"]
["Impression graphique"," ",0,"","Sélectionnez","Sélectionnez"]
["Autres : préciser"," ",0,"","Sélectionnez","Sélectionnez"]
[null,null,0,"","Sélectionnez","Sélectionnez"]
[null," ",0,"","Sélectionnez","Sélectionnez"]
[null,"sous-total",{"$f":"SUM(C69:C73)","v":0},{"$f":"SUM(D69:D73)","v":{"v":0,"d":"0%"}}]
["Autres dépenses"]
["Préciser"," ",0,{"$f":"IF(C76=0,\"\",C76/$C$86)","v":""},"Sélectionnez","Sélectionnez"]
[null," ",0,"","Sélectionnez","Sélectionnez"]
[null," ",0,"","Sélectionnez","Sélectionnez"]
[null," ",0,"","Sélectionnez","Sélectionnez"]
[null," ",0,"","Sélectionnez","Sélectionnez"]
[null," ",0,"","Sélectionnez","Sélectionnez"]
[null," ",0,"","Sélectionnez","Sélectionnez"]
[null," ",0,"","Sélectionnez","Sélectionnez"]
[null,"sous-total",{"$f":"SUM(C76:C83)","v":0},{"$f":"SUM(D76:D83)","v":{"v":0,"d":"0%"}}]
[]
[null,"total des dépenses",{"$f":"SUM(C58,C67,C74,C84,C85)","v":0},{"$f":"SUM(D58,D67,D74,D84)","v":{"v":0,"d":"0%"}}]
[null,"total des dépenses admissibles",{"$f":"SUM(D58,D62,D84)","v":{"v":0,"d":"0.00 $"}}]
[]
["Écart budgétaire",null,"Valeur total ($)","Valeur en Espèces","Valeurs en Services","% Valeur Total","% Confirmé"]
["Total des revenus",null,{"$f":"C47","v":0},{"$f":"SUMIFS(C12:C17,E12:E17,\"Espèces\")+SUMIFS(C20:C25,E20:E25,\"Espèces\")+SUMIFS(C29:C34,E29:E34,\"Espèces\")+SUMIFS(C37:C44,E37:E44,\"Espèces\")","v":0},{"$f":"SUMIFS(C12:C17,E12:E17,\"services\")+SUMIFS(C20:C25,E20:E25,\"services\")+SUMIFS(C29:C34,E29:E34,\"services\")+SUMIFS(C37:C44,E37:E44,\"services\")","v":0},{"$f":"C90/C91","v":{"$error":"#DIV/0!"}},{"$f":"SUMIFS(D12:D17,F12:F17,\"Confirmé\")+SUMIFS(D20:D25,F20:F25,\"Confirmé\")+SUMIFS(D29:D34,F29:F34,\"Confirmé\")+SUMIFS(D37:D44,F37:F44,\"Confirmé\")","v":{"v":0,"d":"0%"}}]
["Total des dépenses",null,{"$f":"C86","v":0},{"$f":"SUMIFS(C51:C57,E51:E57,\"Espèces\")+SUMIFS(C60:C66,E60:E66,\"Espèces\")+SUMIFS(C69:C73,E69:E73,\"Espèces\")+SUMIFS(C76:C83,E76:E83,\"Espèces\")","v":0},{"$f":"SUMIFS(C51:C57,E51:E57,\"Services\")+SUMIFS(C60:C66,E60:E66,\"Services\")+SUMIFS(C69:C73,E69:E73,\"Services\")+SUMIFS(C76:C83,E76:E83,\"Services\")","v":0},{"v":1,"d":"100%"},{"$f":"SUMIFS(D51:D57,F51:F57,\"Confirmé\")+SUMIFS(D60:D66,F60:F66,\"Confirmé\")+SUMIFS(D69:D73,F69:F73,\"Confirmé\")+SUMIFS(D76:D83,F76:F83,\"Confirmé\")","v":{"v":0,"d":"0%"}}]
["Écart",null,{"$f":"+C90-C91","v":0},{"$f":"+D90-D91","v":0},0,{"$f":"F90-F91","v":{"$error":"#DIV/0!"}},{"$f":"IF(C90=0,0,G90-G91)","v":{"v":0,"d":"0%"}}]
[{"$nulls":3},{"$f":"SUMIFS(D51:D57,E51:E57,\"Espèces\")+SUMIFS(D60:D66,E60:E66,\"Espèces\")+SUMIFS(D69:D73,E69:E73,\"Espèces\")+SUMIFS(D76:D83,E76:E83,\"Espèces\")","v":{"v":0,"d":"0%"}},{"$f":"SUMIFS(D51:D57,E51:E57,\"Services\")+SUMIFS(D60:D66,E60:E66,\"Services\")+SUMIFS(D69:D73,E69:E73,\"Services\")+SUMIFS(D76:D83,E76:E83,\"Services\")","v":{"v":0,"d":"0%"}},{"$f":"SUM(D93:E93)","v":{"v":0,"d":"0%"}}]
["Le résultat de ces cases devrait être ZÉRO",null,null,"En Espèces","En Services","TOTAL"]

{"sheet":"Bilan financier","index":1,"n_rows":121,"n_cols":7,"rows_kept":121,"merged":[[2,0,2,6],[3,1,3,6],[4,1,4,6],[6,0,6,6],[7,0,7,6],[8,0,8,6],[10,0,10,6],[11,6,19,6],[20,0,20,6],[21,6,30,6],[31,0,31,6],[32,6,40,6],[41,0,41,6],[42,6,52,6],[53,0,53,3],[57,0,57,6],[58,6,67,6],[68,0,68,6],[69,6,78,6],[79,0,79,6],[80,6,87,6],[88,0,88,6],[89,6,99,6],[100,0,100,3],[103,0,103,1],[104,0,104,1],[105,0,105,1],[106,0,106,1],[107,0,107,1],[107,2,107,3],[108,0,110,1],[111,0,111,3],[112,0,114,1],[115,0,115,1],[116,0,116,3],[117,0,119,1],[120,0,120,1],[121,0,121,3]]}
[]
["Bilan financier"]
["Programme événements 2025 - Animation urbaine du SLSVC"]
["Nom de l'organisme :",{"$f":"IF('Budget prévisionnel'!B4:F4=\"\",\"\",'Budget prévisionnel'!B4:F4)","v":""}]
["Nom du projet :",{"$f":"IF('Budget prévisionnel'!B5:F5=\"\",\"\",'Budget prévisionnel'!B5:F5)","v":""}]
[]
["* * IMPORTANT : LIRE LES INSTRUCTIONS AVANT DE REMPLIR LA GRILLE BUDGÉTAIRE * *"]
["INSTRUCTIONS"]
["\nLes montants initialement inscrits dans le \"Budget prévisionnel\" soumis (premier onglet) ont été retranscrits dans la colonne C du budget ci-dessous.\n\n1. Pour chaque poste budgétaire (Revenus et Dépenses), complétez la colonne D en indiquant le montant réel.\n2. Ajouter un poste budgétaire supplémentaires dans les lignes prévues à cet effet (en bleu) pour toutes les dépenses ou revenus non prévus. Inscrire le montant de la dépense dans la colonne D; la colonne C restera à 0.\n3. Compléter la colonne F en indiquant le type de soutien ou de dépense (Espèces ou Service) en fonction de la réalité.\n4. Inscrivez tout commentaire pertinent pour expliquer les différences notables entre les prévisions et le réel."]
["REVENUS","Description / détails","Valeur en espèces ($) - prévision","valeur en espèces ($) - RÉEL","% RÉEL","Type de soutien\nOBLIGATOIRE","Commentaires - justifications"]
["Municipal"]
[{"$f":"IF('Budget prévisionnel'!A12=\"\",\"\",'Budget prévisionnel'!A12)","v":"Animation urbaine (événement)"},{"$f":"IF('Budget prévisionnel'!B12=\"\",\"\",'Budget prévisionnel'!B12)","v":"Programme de soutien financier"},{"$f":"IF('Budget prévisionnel'!C12=0,0,'Budget prévisionnel'!C12)","v":0},0,{"$f":"IF(D12=0,\"\",D12/$D$55)","v":""},"Sélectionnez"]
[{"$f":"IF('Budget prévisionnel'!A13=\"\",\"\",'Budget prévisionnel'!A13)","v":"Autre unité administrative : préciser "},{"$f":"IF('Budget prévisionnel'!B13=\"\",\"\",'Budget prévisionnel'!B13)","v":" "},{"$f":"IF('Budget prévisionnel'!C13=\"\",\"\",'Budget prévisionnel'!C13)","v":0},0,{"$f":"IF(D13=0,\"\",D13/$D$55)","v":""},"Sélectionnez"]
[{"$f":"IF('Budget prévisionnel'!A14=\"\",\"\",'Budget prévisionnel'!A14)","v":""},{"$f":"IF('Budget prévisionnel'!B14=\"\",\"\",'Budget prévisionnel'!B14)","v":""},{"$f":"IF('Budget prévisionnel'!C14=\"\",\"\",'Budget prévisionnel'!C14)","v":0},0,"","Sélectionnez"]
[{"$f":"IF('Budget prévisionnel'!A15=\"\",\"\",'Budget prévisionnel'!A15)","v":""},{"$f":"IF('Budget prévisionnel'!B15=\"\",\"\",'Budget prévisionnel'!B15)","v":""},{"$f":"IF('Budget prévisionnel'!C15=\"\",\"\",'Budget prévisionnel'!C15)","v":0},0,"","Sélectionnez"]
[{"$f":"IF('Budget prévisionnel'!A16=\"\",\"\",'Budget prévisionnel'!A16)","v":""},{"$f":"IF('Budget prévisionnel'!B16=\"\",\"\",'Budget prévisionnel'!B16)","v":""},{"$f":"IF('Budget prévisionnel'!C16=\"\",\"\",'Budget prévisionnel'!C16)","v":0},0,"","Sélectionnez"]
[{"$f":"IF('Budget prévisionnel'!A17=\"\",\"\",'Budget prévisionnel'!A17)","v":""},{"$f":"IF('Budget prévisionnel'!B17=\"\",\"\",'Budget prévisionnel'!B17)","v":" "},{"$f":"IF('Budget prévisionnel'!C17=\"\",\"\",'Budget prévisionnel'!C17)","v":0},0,"","Sélectionnez"]
[null,null,0,0,"","Sélectionnez"]
[null,null,0,0,"","Sélectionnez"]
[null,"sous-total",{"$f":"SUM(C12:C19)","v":0},{"$f":"SUM(D12:D19)","v":0},{"$f":"SUM(E12:E19)","v":{"v":0,"d":"0%"}}]
["Autres organismes publics ou parapublics"]
[{"$f":"IF('Budget prévisionnel'!A20=\"\",\"\",'Budget prévisionnel'!A20)","v":"Gouvernement provincial (programme ou élu)"},{"$f":"IF('Budget prévisionnel'!B20=\"\",\"\",'Budget prévisionnel'!B20)","v":""},{"$f":"IF('Budget prévisionnel'!C20=\"\",\"\",'Budget prévisionnel'!C20)","v":0},0,{"$f":"IF(D22=0,\"\",D22/$D$55)","v":""},"Sélectionnez"]
[{"$f":"IF('Budget prévisionnel'!A21=\"\",\"\",'Budget prévisionnel'!A21)","v":"Gouvernement fédéral (programme ou élu)"},{"$f":"IF('Budget prévisionnel'!B21=\"\",\"\",'Budget prévisionnel'!B21)","v":""},{"$f":"IF('Budget prévisionnel'!C21=\"\",\"\",'Budget prévisionnel'!C21)","v":0},0,"","Sélectionnez"]
[{"$f":"IF('Budget prévisionnel'!A22=\"\",\"\",'Budget prévisionnel'!A22)","v":"Autres : préciser"},{"$f":"IF('Budget prévisionnel'!B22=\"\",\"\",'Budget prévisionnel'!B22)","v":""},{"$f":"IF('Budget prévisionnel'!C22=\"\",\"\",'Budget prévisionnel'!C22)","v":0},0,"","Sélectionnez"]
[{"$f":"IF('Budget prévisionnel'!A23=\"\",\"\",'Budget prévisionnel'!A23)","v":""},{"$f":"IF('Budget prévisionnel'!B23=\"\",\"\",'Budget prévisionnel'!B23)","v":""},{"$f":"IF('Budget prévisionnel'!C23=\"\",\"\",'Budget prévisionnel'!C23)","v":0},0,"","Sélectionnez"]
[{"$f":"IF('Budget prévisionnel'!A24=\"\",\"\",'Budget prévisionnel'!A24)","v":""},{"$f":"IF('Budget prévisionnel'!B24=\"\",\"\",'Budget prévisionnel'!B24)","v":""},{"$f":"IF('Budget prévisionnel'!C24=\"\",\"\",'Budget prévisionnel'!C24)","v":0},0,"","Sélectionnez"]
[{"$f":"IF('Budget prévisionnel'!A25=\"\",\"\",'Budget prévisionnel'!A25)","v":""},{"$f":"IF('Budget prévisionnel'!B25=\"\",\"\",'Budget prévisionnel'!B25)","v":""},{"$f":"IF('Budget prévisionnel'!C25=\"\",\"\",'Budget prévisionnel'!C25)","v":0},0,"","Sélectionnez"]
[null,null,0,0,"","Sélectionnez"]
[null,null,0,0,"","Sélectionnez"]
[null,"sous-total",{"$f":"SUM(C22:C29)","v":0},{"$f":"SUM(D22:D29)","v":0},{"$f":"SUM(E22:E29)","v":{"v":0,"d":"0%"}}]
[null,"sous-total du financement public",{"$f":"C20+C30","v":0},{"$f":"D20+D30","v":0},{"$f":"SUM(E20,E30)","v":{"v":0,"d":"0%"}}]
["Partenaires du projet"]
[{"$f":"IF('Budget prévisionnel'!A29=\"\",\"\",'Budget prévisionnel'!A29)","v":"Organismes partenaires"},{"$f":"IF('Budget prévisionnel'!B29=\"\",\"\",'Budget prévisionnel'!B29)","v":""},{"$f":"IF('Budget prévisionnel'!C29=\"\",\"\",'Budget prévisionnel'!C29)","v":0},0,{"$f":"IF(D33=0,\"\",D33/$D$55)","v":""},"Sélectionnez"]
[{"$f":"IF('Budget prévisionnel'!A30=\"\",\"\",'Budget prévisionnel'!A30)","v":"Commanditaires"},{"$f":"IF('Budget prévisionnel'!B30=\"\",\"\",'Budget prévisionnel'!B30)","v":""},{"$f":"IF('Budget prévisionnel'!C30=\"\",\"\",'Budget prévisionnel'!C30)","v":0},0,"","Sélectionnez"]
[{"$f":"IF('Budget prévisionnel'!A31=\"\",\"\",'Budget prévisionnel'!A31)","v":"Dons : préciser"},{"$f":"IF('Budget prévisionnel'!B31=\"\",\"\",'Budget prévisionnel'!B31)","v":""},{"$f":"IF('Budget prévisionnel'!C31=\"\",\"\",'Budget prévisionnel'!C31)","v":0},0,"","Sélectionnez"]
[{"$f":"IF('Budget prévisionnel'!A32=\"\",\"\",'Budget prévisionnel'!A32)","v":""},{"$f":"IF('Budget prévisionnel'!B32=\"\",\"\",'Budget prévisionnel'!B32)","v":""},{"$f":"IF('Budget prévisionnel'!C32=\"\",\"\",'Budget prévisionnel'!C32)","v":0},0,"","Sélectionnez"]
[{"$f":"IF('Budget prévisionnel'!A33=\"\",\"\",'Budget prévisionnel'!A33)","v":""},{"$f":"IF('Budget prévisionnel'!B33=\"\",\"\",'Budget prévisionnel'!B33)","v":""},{"$f":"IF('Budget prévisionnel'!C33=\"\",\"\",'Budget prévisionnel'!C33)","v":0},0,"","Sélectionnez"]
[{"$f":"IF('Budget prévisionnel'!A34=\"\",\"\",'Budget prévisionnel'!A34)","v":""},{"$f":"IF('Budget prévisionnel'!B34=\"\",\"\",'Budget prévisionnel'!B34)","v":""},{"$f":"IF('Budget prévisionnel'!C34=\"\",\"\",'Budget prévisionnel'!C34)","v":0},0,"","Sélectionnez"]
[null,null,0,0,"","Sélectionnez"]
[null,null,0,0,"","Sélectionnez"]
[null,"sous-total",{"$f":"SUM(C33:C38)","v":0},{"$f":"SUM(D33:D40)","v":0},{"$f":"SUM(E33:E38)","v":{"v":0,"d":"0%"}}]
["Revenus autonomes"]
[{"$f":"IF('Budget prévisionnel'!A37=\"\",\"\",'Budget prévisionnel'!A37)","v":"Participation financière de l'organisme"},{"$f":"IF('Budget prévisionnel'!B37=\"\",\"\",'Budget prévisionnel'!B37)","v":""},{"$f":"IF('Budget prévisionnel'!C37=\"\",\"\",'Budget prévisionnel'!C37)","v":0},0,{"$f":"IF(D43=0,\"\",D43/$D$55)","v":""},"Sélectionnez"]
[{"$f":"IF('Budget prévisionnel'!A38=\"\",\"\",'Budget prévisionnel'!A38)","v":"Ventes : préciser"},{"$f":"IF('Budget prévisionnel'!B38=\"\",\"\",'Budget prévisionnel'!B38)","v":""},{"$f":"IF('Budget prévisionnel'!C38=\"\",\"\",'Budget prévisionnel'!C38)","v":0},0,"","Sélectionnez"]
[{"$f":"IF('Budget prévisionnel'!A39=\"\",\"\",'Budget prévisionnel'!A39)","v":"Activités de financement : préciser"},{"$f":"IF('Budget prévisionnel'!B39=\"\",\"\",'Budget prévisionnel'!B39)","v":""},{"$f":"IF('Budget prévisionnel'!C39=\"\",\"\",'Budget prévisionnel'!C39)","v":0},0,"","Sélectionnez"]
[{"$f":"IF('Budget prévisionnel'!A40=\"\",\"\",'Budget prévisionnel'!A40)","v":"Autres : préciser"},{"$f":"IF('Budget prévisionnel'!B40=\"\",\"\",'Budget prévisionnel'!B40)","v":""},{"$f":"IF('Budget prévisionnel'!C40=\"\",\"\",'Budget prévisionnel'!C40)","v":0},0,"","Sélectionnez"]
[{"$f":"IF('Budget prévisionnel'!A41=\"\",\"\",'Budget prévisionnel'!A41)","v":""},{"$f":"IF('Budget prévisionnel'!B41=\"\",\"\",'Budget prévisionnel'!B41)","v":""},{"$f":"IF('Budget prévisionnel'!C41=\"\",\"\",'Budget prévisionnel'!C41)","v":0},0,"","Sélectionnez"]
[{"$f":"IF('Budget prévisionnel'!A42=\"\",\"\",'Budget prévisionnel'!A42)","v":""},{"$f":"IF('Budget prévisionnel'!B42=\"\",\"\",'Budget prévisionnel'!B42)","v":""},{"$f":"IF('Budget prévisionnel'!C42=\"\",\"\",'Budget prévisionnel'!C42)","v":0},0,"","Sélectionnez"]
[{"$f":"IF('Budget prévisionnel'!A43=\"\",\"\",'Budget prévisionnel'!A43)","v":""},{"$f":"IF('Budget prévisionnel'!B43=\"\",\"\",'Budget prévisionnel'!B43)","v":""},{"$f":"IF('Budget prévisionnel'!C43=\"\",\"\",'Budget prévisionnel'!C43)","v":0},0,"","Sélectionnez"]
[{"$f":"IF('Budget prévisionnel'!A44=\"\",\"\",'Budget prévisionnel'!A44)","v":""},{"$f":"IF('Budget prévisionnel'!B44=\"\",\"\",'Budget prévisionnel'!B44)","v":""},{"$f":"IF('Budget prévisionnel'!C44=\"\",\"\",'Budget prévisionnel'!C44)","v":0},0,"","Sélectionnez"]
[null,null,0,0,"","Sélectionnez"]
[null,null,0,0,"","Sélectionnez"]
[null,"sous-total des revenus autonomes",{"$f":"SUM(C43:C50)","v":0},{"$f":"SUM(D43:D52)","v":0},{"$f":"SUM(E43:E52)","v":{"v":0,"d":"0%"}}]
[]
[null,"total des revenus",{"$f":"SUM(C53,C41,C31)","v":0},{"$f":"SUM(D53,D41,D31)","v":0},{"$f":"SUM(E31,E41,E53)","v":{"v":0,"d":"0%"}}]
[]
["DÉPENSES","Description / détails","Valeur en espèces ($) - prévision","Valeur en espèces ($) - réel","% RÉEL","Type de dépense\nOBLIGATOIRE","Commentaires - justifications"]
["Ressources humaines"]
[{"$f":"IF('Budget prévisionnel'!A51=\"\",\"\",'Budget prévisionnel'!A51)","v":"Honoraires professionnels (ex. technicien de son)"},{"$f":"IF('Budget prévisionnel'!B51=\"\",\"\",'Budget prévisionnel'!B51)","v":" "},{"$f":"IF('Budget prévisionnel'!C51=\"\",\"\",'Budget prévisionnel'!C51)","v":0},0,{"$f":"IF(D59=0,\"\",D59/$D$102)","v":""},"Sélectionnez"]
[{"$f":"IF('Budget prévisionnel'!A52=\"\",\"\",'Budget prévisionnel'!A52)","v":"Salaire chargé de projet"},{"$f":"IF('Budget prévisionnel'!B52=\"\",\"\",'Budget prévisionnel'!B52)","v":" "},{"$f":"IF('Budget prévisionnel'!C52=\"\",\"\",'Budget prévisionnel'!C52)","v":0},0,{"$f":"IF(D60=0,\"\",D60/$D$102)","v":""},"Sélectionnez"]
[{"$f":"IF('Budget prévisionnel'!A53=\"\",\"\",'Budget prévisionnel'!A53)","v":"Autres : préciser"},{"$f":"IF('Budget prévisionnel'!B53=\"\",\"\",'Budget prévisionnel'!B53)","v":" "},{"$f":"IF('Budget prévisionnel'!C53=\"\",\"\",'Budget prévisionnel'!C53)","v":0},0,"","Sélectionnez"]
[{"$f":"IF('Budget prévisionnel'!A54=\"\",\"\",'Budget prévisionnel'!A54)","v":""},{"$f":"IF('Budget prévisionnel'!B54=\"\",\"\",'Budget prévisionnel'!B54)","v":" "},{"$f":"IF('Budget prévisionnel'!C54=\"\",\"\",'Budget prévisionnel'!C54)","v":0},0,"","Sélectionnez"]
[{"$f":"IF('Budget prévisionnel'!A55=\"\",\"\",'Budget prévisionnel'!A55)","v":""},{"$f":"IF('Budget prévisionnel'!B55=\"\",\"\",'Budget prévisionnel'!B55)","v":""},{"$f":"IF('Budget prévisionnel'!C55=\"\",\"\",'Budget prévisionnel'!C55)","v":0},0,"","Sélectionnez"]
[{"$f":"IF('Budget prévisionnel'!A56=\"\",\"\",'Budget prévisionnel'!A56)","v":""},{"$f":"IF('Budget prévisionnel'!B56=\"\",\"\",'Budget prévisionnel'!B56)","v":""},{"$f":"IF('Budget prévisionnel'!C56=\"\",\"\",'Budget prévisionnel'!C56)","v":0},0,"","Sélectionnez"]
[{"$f":"IF('Budget prévisionnel'!A57=\"\",\"\",'Budget prévisionnel'!A57)","v":""},{"$f":"IF('Budget prévisionnel'!B65=\"\",\"\",'Budget prévisionnel'!B57)","v":" "},{"$f":"IF('Budget prévisionnel'!C57=\"\",\"\",'Budget prévisionnel'!C57)","v":0},0,"","Sélectionnez"]
[null,null,0,0,"","Sélectionnez"]
[null,null,0,0,"","Sélectionnez"]
[null,"sous-total",{"$f":"SUM(C59:C67)","v":0},{"$f":"SUM(D59:D67)","v":0},{"$f":"SUM(E59:E67)","v":{"v":0,"d":"0%"}}]
["Logistique"]
[{"$f":"IF('Budget prévisionnel'!A60=\"\",\"\",'Budget prévisionnel'!A60)","v":"Matériel pour animation"},{"$f":"IF('Budget prévisionnel'!B60=\"\",\"\",'Budget prévisionnel'!B60)","v":" "},{"$f":"IF('Budget prévisionnel'!C60=\"\",\"\",'Budget prévisionnel'!C60)","v":0},0,{"$f":"IF(D70=0,\"\",D70/$D$102)","v":""},"Sélectionnez"]
[{"$f":"IF('Budget prévisionnel'!A61=\"\",\"\",'Budget prévisionnel'!A61)","v":"Animation"},{"$f":"IF('Budget prévisionnel'!B61=\"\",\"\",'Budget prévisionnel'!B61)","v":" "},{"$f":"IF('Budget prévisionnel'!C61=\"\",\"\",'Budget prévisionnel'!C61)","v":0},0,"","Sélectionnez"]
[{"$f":"IF('Budget prévisionnel'!A62=\"\",\"\",'Budget prévisionnel'!A62)","v":"Sonorisation"},{"$f":"IF('Budget prévisionnel'!B62=\"\",\"\",'Budget prévisionnel'!B62)","v":" "},{"$f":"IF('Budget prévisionnel'!C62=\"\",\"\",'Budget prévisionnel'!C62)","v":0},0,"","Sélectionnez"]
[{"$f":"IF('Budget prévisionnel'!A63=\"\",\"\",'Budget prévisionnel'!A63)","v":"Éclairage"},{"$f":"IF('Budget prévisionnel'!B63=\"\",\"\",'Budget prévisionnel'!B63)","v":" "},{"$f":"IF('Budget prévisionnel'!C63=\"\",\"\",'Budget prévisionnel'!C63)","v":0},0,"","Sélectionnez"]
[{"$f":"IF('Budget prévisionnel'!A64=\"\",\"\",'Budget prévisionnel'!A64)","v":"Location"},{"$f":"IF('Budget prévisionnel'!B64=\"\",\"\",'Budget prévisionnel'!B64)","v":" "},{"$f":"IF('Budget prévisionnel'!C64=\"\",\"\",'Budget prévisionnel'!C64)","v":0},0,"","Sélectionnez"]
[{"$f":"IF('Budget prévisionnel'!A65=\"\",\"\",'Budget prévisionnel'!A65)","v":"Autres : préciser"},{"$f":"IF('Budget prévisionnel'!B65=\"\",\"\",'Budget prévisionnel'!B65)","v":" "},{"$f":"IF('Budget prévisionnel'!C65=\"\",\"\",'Budget prévisionnel'!C65)","v":0},0,"","Sélectionnez"]
[{"$f":"IF('Budget prévisionnel'!A66=\"\",\"\",'Budget prévisionnel'!A66)","v":""},{"$f":"IF('Budget prévisionnel'!B66=\"\",\"\",'Budget prévisionnel'!B66)","v":" "},{"$f":"IF('Budget prévisionnel'!C66=\"\",\"\",'Budget prévisionnel'!C66)","v":0},0,"","Sélectionnez"]
[null,null,0,0,"","Sélectionnez"]
[null,null,0,0,"","Sélectionnez"]
[null,"sous-total",{"$f":"SUM(C70:C76)","v":0},{"$f":"SUM(D70:D78)","v":0},{"$f":"SUM(E70:E78)","v":{"v":0,"d":"0%"}}]
["Promotion du projet"]
[{"$f":"IF('Budget prévisionnel'!A69=\"\",\"\",'Budget prévisionnel'!A69)","v":"Graphisme"},{"$f":"IF('Budget prévisionnel'!B69=\"\",\"\",'Budget prévisionnel'!B69)","v":" "},{"$f":"IF('Budget prévisionnel'!C69=\"\",\"\",'Budget prévisionnel'!C69)","v":0},0,{"$f":"IF(D81=0,\"\",D81/$D$102)","v":""},"Sélectionnez"]
[{"$f":"IF('Budget prévisionnel'!A70=\"\",\"\",'Budget prévisionnel'!A70)","v":"Impression graphique"},{"$f":"IF('Budget prévisionnel'!B70=\"\",\"\",'Budget prévisionnel'!B70)","v":" "},{"$f":"IF('Budget prévisionnel'!C70=\"\",\"\",'Budget prévisionnel'!C70)","v":0},0,"","Sélectionnez"]
[{"$f":"IF('Budget prévisionnel'!A71=\"\",\"\",'Budget prévisionnel'!A71)","v":"Autres : préciser"},{"$f":"IF('Budget prévisionnel'!B71=\"\",\"\",'Budget prévisionnel'!B71)","v":" "},{"$f":"IF('Budget prévisionnel'!C71=\"\",\"\",'Budget prévisionnel'!C71)","v":0},0,"","Sélectionnez"]
[{"$f":"IF('Budget prévisionnel'!A72=\"\",\"\",'Budget prévisionnel'!A72)","v":""},{"$f":"IF('Budget prévisionnel'!B72=\"\",\"\",'Budget prévisionnel'!B72)","v":""},{"$f":"IF('Budget prévisionnel'!C72=\"\",\"\",'Budget prévisionnel'!C72)","v":0},0,"","Sélectionnez"]
[{"$f":"IF('Budget prévisionnel'!A73=\"\",\"\",'Budget prévisionnel'!A73)","v":""},{"$f":"IF('Budget prévisionnel'!B73=\"\",\"\",'Budget prévisionnel'!B73)","v":" "},{"$f":"IF('Budget prévisionnel'!C73=\"\",\"\",'Budget prévisionnel'!C73)","v":0},0,"","Sélectionnez"]
[null,null,0,0,"","Sélectionnez"]
[null,null,0,0,"","Sélectionnez"]
[null,"sous-total",{"$f":"SUM(C81:C85)","v":0},{"$f":"SUM(D81:D87)","v":0},{"$f":"SUM(E81:E87)","v":{"v":0,"d":"0%"}}]
["Autres dépenses"]
[{"$f":"IF('Budget prévisionnel'!A76=\"\",\"\",'Budget prévisionnel'!A76)","v":"Préciser"},{"$f":"IF('Budget prévisionnel'!B76=\"\",\"\",'Budget prévisionnel'!B76)","v":" "},{"$f":"IF('Budget prévisionnel'!C76=\"\",\"\",'Budget prévisionnel'!C76)","v":0},0,{"$f":"IF(D90=0,\"\",D90/$D$102)","v":""},"Sélectionnez"]
[{"$f":"IF('Budget prévisionnel'!A77=\"\",\"\",'Budget prévisionnel'!A77)","v":""},{"$f":"IF('Budget prévisionnel'!B77=\"\",\"\",'Budget prévisionnel'!B77)","v":" "},{"$f":"IF('Budget prévisionnel'!C77=\"\",\"\",'Budget prévisionnel'!C77)","v":0},0,"","Sélectionnez"]
[{"$f":"IF('Budget prévisionnel'!A78=\"\",\"\",'Budget prévisionnel'!A78)","v":""},{"$f":"IF('Budget prévisionnel'!B78=\"\",\"\",'Budget prévisionnel'!B78)","v":" "},{"$f":"IF('Budget prévisionnel'!C78=\"\",\"\",'Budget prévisionnel'!C78)","v":0},0,"","Sélectionnez"]
[{"$f":"IF('Budget prévisionnel'!A79=\"\",\"\",'Budget prévisionnel'!A79)","v":""},{"$f":"IF('Budget prévisionnel'!B79=\"\",\"\",'Budget prévisionnel'!B79)","v":" "},{"$f":"IF('Budget prévisionnel'!C79=\"\",\"\",'Budget prévisionnel'!C79)","v":0},0,"","Sélectionnez"]
[{"$f":"IF('Budget prévisionnel'!A80=\"\",\"\",'Budget prévisionnel'!A80)","v":""},{"$f":"IF('Budget prévisionnel'!B80=\"\",\"\",'Budget prévisionnel'!B80)","v":" "},{"$f":"IF('Budget prévisionnel'!C80=\"\",\"\",'Budget prévisionnel'!C80)","v":0},0,"","Sélectionnez"]
[{"$f":"IF('Budget prévisionnel'!A81=\"\",\"\",'Budget prévisionnel'!A81)","v":""},{"$f":"IF('Budget prévisionnel'!B81=\"\",\"\",'Budget prévisionnel'!B81)","v":" "},{"$f":"IF('Budget prévisionnel'!C81=\"\",\"\",'Budget prévisionnel'!C81)","v":0},0,"","Sélectionnez"]
[{"$f":"IF('Budget prévisionnel'!A82=\"\",\"\",'Budget prévisionnel'!A82)","v":""},{"$f":"IF('Budget prévisionnel'!B82=\"\",\"\",'Budget prévisionnel'!B82)","v":" "},{"$f":"IF('Budget prévisionnel'!C82=\"\",\"\",'Budget prévisionnel'!C82)","v":0},0,"","Sélectionnez"]
[{"$f":"IF('Budget prévisionnel'!A83=\"\",\"\",'Budget prévisionnel'!A83)","v":""},{"$f":"IF('Budget prévisionnel'!B83=\"\",\"\",'Budget prévisionnel'!B83)","v":" "},{"$f":"IF('Budget prévisionnel'!C83=\"\",\"\",'Budget prévisionnel'!C83)","v":0},0,"","Sélectionnez"]
[null,null,0,0,"","Sélectionnez"]
[null,null,0,0,"","Sélectionnez"]
[null,"sous-total",{"$f":"SUM(C90:C97)","v":0},{"$f":"SUM(D90:D99)","v":0},{"$f":"SUM(E90:E99)","v":{"v":0,"d":"0%"}}]
[]
[null,"total des dépenses",{"$f":"SUM(C68,C79,C88,C100)","v":0},{"$f":"SUM(D68,D79,D88,D100)","v":0},{"$f":"SUM(E68,E79,E88,E100)","v":{"v":0,"d":"0%"}}]
[]
["Écart budgétaire",null,"Réel ($)","Valeur en Espèces","Valeurs en Services","% Valeur Total"]
["Total des revenus",null,{"$f":"D55","v":0},{"$f":"SUMIFS(D12:D19,F12:F19,\"Espèces\")+SUMIFS(D22:D29,F22:F29,\"Espèces\")+SUMIFS(D33:D40,F33:F40,\"Espèces\")+SUMIFS(D43:D52,F43:F52,\"Espèces\")","v":0},{"$f":"SUMIFS(D12:D19,F12:F19,\"Services\")+SUMIFS(D22:D29,F22:F29,\"Services\")+SUMIFS(D33:D40,F33:F40,\"Services\")+SUMIFS(D43:D52,F43:F52,\"Services\")","v":0},{"$f":"IF(D110=0,0,D110/D111)","v":{"v":0,"d":"0%"}}]
["Total des dépenses",null,{"$f":"D102","v":0},{"$f":"SUMIFS(D59:D67,F59:F67,\"Espèces\")+SUMIFS(D70:D78,F70:F78,\"Espèces\")+SUMIFS(D81:D87,F81:F87,\"Espèces\")+SUMIFS(D90:D99,F90:F99,\"Espèces\")","v":0},{"$f":"SUMIFS(D59:D67,F59:F67,\"Services\")+SUMIFS(D70:D78,F70:F78,\"Services\")+SUMIFS(D81:D87,F81:F87,\"Services\")+SUMIFS(D90:D99,F90:F99,\"Services\")","v":0},{"$f":"IF(D111=0,0,D111/D110)","v":{"v":0,"d":"0%"}}]
["Écart",null,{"$f":"C105-C106","v":0},{"$f":"D105-D106","v":0},0,{"$f":"IF(D106=0,0,F105-100%)","v":{"v":0,"d":"0%"}}]
["Le résultat de ces cases devrait être ZÉRO"]
["Écart budget total",null,"Prévisions ($)","Réel ($)","Écart $","% Écart"]
[null,null,{"$f":"C55","v":0},{"$f":"D55","v":0},{"$f":"D110-C110","v":0},{"$f":"IF(D110=0,0,(D110/$C$110)-100%)","v":{"v":0,"d":"0%"}}]
[null,null,{"$f":"C102","v":0},{"$f":"D102","v":0},{"$f":"D111-C111","v":0},{"$f":"IF(D111=0,0,(D111/$C$111)-100%)","v":{"v":0,"d":"0%"}}]
[]
["Écart valeur en Espèces",null,"Prévisions Valeur en Espèces","Valeur en Espèces réel","Écart $","% Écart"]
[null,null,{"$f":"'Budget prévisionnel'!D90","v":0},{"$f":"SUMIFS(D12:D19,F12:F19,\"Espèces\")+SUMIFS(D22:D29,F22:F29,\"Espèces\")+SUMIFS(D33:D40,F33:F40,\"Espèces\")+SUMIFS(D43:D52,F43:F52,\"Espèces\")","v":0},{"$f":"D114-C114","v":0},{"$f":"IF(D114=0,0,(D114/$C$114)-100%)","v":{"v":0,"d":"0%"}}]
[null,null,{"$f":"'Budget prévisionnel'!D91","v":0},{"$f":"SUMIFS(D59:D67,F59:F67,\"Espèces\")+SUMIFS(D70:D78,F70:F78,\"Espèces\")+SUMIFS(D81:D87,F81:F87,\"Espèces\")+SUMIFS(D90:D99,F90:F99,\"Espèces\")","v":0},{"$f":"D115-C115","v":0},{"$f":"IF(D115=0,0,(D115/$C$115)-100%)","v":{"v":0,"d":"0%"}}]
["% valeur en Espèces",null,{"$f":"'Budget prévisionnel'!D93","v":{"v":0,"d":"0%"}},{"$f":"SUMIFS(E59:E67,F59:F67,\"Espèces\")+SUMIFS(E70:E78,F70:F78,\"Espèces\")+SUMIFS(E81:E87,F81:F87,\"Espèces\")+SUMIFS(E90:E99,F90:F99,\"Espèces\")","v":{"v":0,"d":"0%"}},{"$f":"D116-C116","v":{"v":0,"d":"0%"}}]
[]
["Écart valeur en Services",null,"Prévisions Valeur en Services","Valeurs en Services réel","Écart $","% Écart"]
[null,null,{"$f":"'Budget prévisionnel'!E90","v":0},{"$f":"SUMIFS(D12:D19,F12:F19,\"services\")+SUMIFS(D22:D29,F22:F29,\"services\")+SUMIFS(D33:D40,F33:F40,\"services\")+SUMIFS(D43:D52,F43:F52,\"services\")","v":0},{"$f":"D119-C119","v":0},{"$f":"IF(D119=0,0,(D119/C119)-100%)","v":{"v":0,"d":"0%"}}]
[null,null,{"$f":"'Budget prévisionnel'!E91","v":0},{"$f":"SUMIFS(D59:D67,F59:F67,\"Services\")+SUMIFS(D70:D78,F70:F78,\"Services\")+SUMIFS(D81:D87,F81:F87,\"Services\")+SUMIFS(D90:D99,F90:F99,\"Services\")","v":0},{"$f":"D120-C120","v":0},{"$f":"IF(D120=0,0,(D120/C120)-100%)","v":{"v":0,"d":"0%"}}]
["% valeur en Services",null,{"$f":"'Budget prévisionnel'!E93","v":{"v":0,"d":"0%"}},{"$f":"SUMIFS(E59:E67,F59:F67,\"Services\")+SUMIFS(E70:E78,F70:F78,\"Services\")+SUMIFS(E81:E87,F81:F87,\"Services\")+SUMIFS(E90:E99,F90:F99,\"Services\")","v":{"v":0,"d":"0%"}},{"$f":"D121-C121","v":{"v":0,"d":"0%"}}]